fUSD/lending_fUSD_20250202
["ID","MTS","AMOUNT","RATE_DAILY","PERIOD"]
[351281973,1738505537585,-151.0,0.00012329,2]
[351281974,1738505537595,-151.0,0.00012329,2]
[351281975,1738505537605,-151.0,0.00012329,2]
[351281976,1738505537614,-151.0,0.00012329,2]
[351281977,1738505537627,-151.0,0.00012329,2]
[351281978,1738505537638,-151.0,0.00012329,2]
[351281979,1738505537647,-151.0,0.00012329,2]
[351281980,1738505537657,-205.771444,0.00012329,2]
[351281981,1738505537667,-1000.0,0.00012332,2]
[351281982,1738505537677,-500.0,0.00012355,2]
[351281983,1738505537686,-500.0,0.00012382,2]
[351281984,1738505537696,-500.0,0.00012409,2]
[351281985,1738505537706,-289.78,0.00012436,2]
[351281986,1738505537716,-500.0,0.00012437,2]
[351281987,1738505537726,-500.0,0.00012464,2]
[351281988,1738505537737,-361.89150993,0.00012464,2]
[351281989,1738505537746,-500.0,0.00012465,2]
[351281990,1738505537756,-500.0,0.00012465,2]
[351281991,1738505537765,-559.46,0.00012465,2]
[351281992,1738505537775,-500.0,0.00012465,2]
[351281993,1738505537784,-803.7,0.00012465,2]
[351281994,1738505537793,-500.0,0.00012465,2]
[351281995,1738505537803,-500.0,0.00012465,2]
[351281996,1738505537812,-500.0,0.00012465,2]
[351281997,1738505537822,-801.06,0.00012465,2]
[351281998,1738505537831,-500.0,0.00012465,2]
[351281999,1738505537841,-500.0,0.00012465,2]
[351282000,1738505537851,-773.23,0.00012465,2]
[351282001,1738505537860,-500.0,0.00012465,2]
[351282002,1738505537872,-759.9,0.00012465,2]
[351282003,1738505537881,-1260.15,0.00012465,2]
[351282004,1738505537891,-589.03,0.00012465,2]
[351282005,1738505537901,-500.0,0.00012465,2]
[351282006,1738505537911,-500.0,0.00012465,2]
[351282007,1738505537920,-500.0,0.00012465,2]
[351282008,1738505537930,-1063.41,0.00012465,2]
[351282009,1738505537940,-673.02,0.00012465,2]
[351282010,1738505537950,-500.0,0.00012465,2]
[351282011,1738505537960,-821.68,0.00012465,2]
[351282012,1738505537970,-549.88,0.00012465,2]
[351282013,1738505537979,-500.0,0.00012465,2]
[351282014,1738505537990,-703.15,0.00012465,2]
[351282015,1738505537999,-500.0,0.00012465,2]
[351282016,1738505538009,-828.9,0.00012465,2]
[351282017,1738505538019,-627.47,0.00012465,2]
[351282018,1738505538028,-731.11,0.00012465,2]
[351282019,1738505538038,-500.0,0.00012465,2]
[351282020,1738505538047,-500.0,0.00012465,2]
[351282021,1738505538057,-592.69,0.00012465,2]
[351282022,1738505538066,-584.24294836,0.00012465,2]
[351282023,1738505538076,-500.0,0.00012465,2]
[351282024,1738505538086,-625.97,0.00012465,2]
[351282025,1738505538095,-500.0,0.00012465,2]
[351282026,1738505538105,-500.0,0.00012465,2]
[351282027,1738505538115,-500.0,0.00012465,2]
[351282028,1738505538125,-661.86,0.00012465,2]
[351282029,1738505538135,-552.57,0.00012465,2]
[351282030,1738505538146,-3015.63,0.00012465,2]
[351282031,1738505538156,-500.0,0.00012465,2]
[351282032,1738505538167,-635.12,0.00012465,2]
[351282033,1738505538178,-1112.86,0.00012465,2]
[351282034,1738505538188,-511.08,0.00012465,2]
[351282035,1738505538198,-910.85,0.00012465,2]
[351282036,1738505538208,-500.0,0.00012465,2]
[351282037,1738505538218,-500.0,0.00012465,2]
[351282038,1738505538227,-738.14,0.00012465,2]
[351282039,1738505538239,-500.0,0.00012465,2]
[351282040,1738505538249,-1482.76,0.00012465,2]
[351282041,1738505538259,-500.0,0.00012465,2]
[351282042,1738505538269,-500.0,0.00012465,2]
[351282043,1738505538279,-545.77,0.00012465,2]
[351282044,1738505538290,-500.0,0.00012465,2]
[351282045,1738505538300,-735.2,0.00012465,2]
[351282046,1738505538309,-717.38,0.00012465,2]
[351282047,1738505538319,-500.0,0.00012465,2]
[351282048,1738505538329,-500.0,0.00012465,2]
[351282049,1738505538340,-2333.39,0.00012465,2]
[351282050,1738505538351,-618.28,0.00012465,2]
[351282051,1738505538362,-500.0,0.00012465,2]
[351282052,1738505538373,-2305.89,0.00012465,2]
[351282053,1738505538383,-703.3,0.00012465,2]
[351282054,1738505538394,-2217.46,0.00012465,2]
[351282055,1738505538404,-500.0,0.00012465,2]
[351282056,1738505538415,-573.42,0.00012465,2]
[351282057,1738505538425,-2053.36,0.00012465,2]
[351282058,1738505538435,-1106.04,0.00012465,2]
[351282059,1738505538445,-2139.13,0.00012465,2]
[351282060,1738505538455,-500.0,0.00012465,2]
[351282061,1738505538465,-500.0,0.00012465,2]
[351282062,1738505538475,-1316.15,0.00012465,2]
[351282063,1738505538485,-500.0,0.00012465,2]
[351282064,1738505538496,-500.0,0.00012465,2]
[351282065,1738505538506,-548.83,0.00012465,2]
[351282066,1738505538516,-553.21,0.00012465,2]
[351282067,1738505538526,-525.3,0.00012465,2]
[351282068,1738505538537,-500.0,0.00012465,2]
[351282069,1738505538550,-2325.54,0.00012465,2]
[351282070,1738505538560,-1109.74,0.00012465,2]
[351282071,1738505538570,-500.44,0.00012465,2]
[351282072,1738505538580,-681.73,0.00012465,2]
[351282073,1738505538591,-677.93,0.00012465,2]
[351282074,1738505538600,-513.34,0.00012465,2]
[351282075,1738505538611,-1154.2,0.00012465,2]
[351282076,1738505538621,-2022.69,0.00012465,2]
[351282077,1738505538631,-685.35,0.00012465,2]
[351282078,1738505538641,-500.0,0.00012465,2]
[351282079,1738505538651,-500.0,0.00012465,2]
[351282080,1738505538661,-500.0,0.00012465,2]
[351282081,1738505538671,-550.64,0.00012465,2]
[351282082,1738505538681,-500.0,0.00012465,2]
[351282083,1738505538691,-1342.11,0.00012465,2]
[351282084,1738505538700,-500.0,0.00012465,2]
[351282085,1738505538710,-2093.39,0.00012465,2]
[351282086,1738505538720,-880.18,0.00012465,2]
[351282087,1738505538731,-1643.92,0.00012465,2]
[351282088,1738505538741,-500.0,0.00012465,2]
[351282089,1738505538751,-793.33,0.00012465,2]
[351282090,1738505538761,-500.0,0.00012465,2]
[351282091,1738505538771,-500.0,0.00012465,2]
[351282092,1738505538782,-500.0,0.00012465,2]
[351282093,1738505538792,-1232.16,0.00012465,2]
[351282094,1738505538802,-500.0,0.00012465,2]
[351282095,1738505538812,-588.54,0.00012465,2]
[351282096,1738505538822,-500.0,0.00012465,2]
[351282097,1738505538832,-534.34,0.00012465,2]
[351282098,1738505538842,-538.87,0.00012465,2]
[351282099,1738505538852,-793.28,0.00012465,2]
[351282100,1738505538862,-500.0,0.00012465,2]
[351282101,1738505538872,-1592.88,0.00012465,2]
[351282102,1738505538882,-616.53,0.00012465,2]
[351282103,1738505538892,-500.0,0.00012465,2]
[351282104,1738505538902,-500.0,0.00012465,2]
[351282105,1738505538913,-1854.87,0.00012465,2]
[351282106,1738505538923,-1690.33,0.00012465,2]
[351282107,1738505538934,-500.0,0.00012465,2]
[351282108,1738505538944,-500.0,0.00012465,2]
[351282109,1738505538955,-534.43,0.00012465,2]
[351282110,1738505538965,-508.93,0.00012465,2]
[351282111,1738505538975,-500.0,0.00012465,2]
[351282112,1738505538988,-637.72,0.00012465,2]
[351282113,1738505538998,-1150.84,0.00012465,2]
[351282114,1738505539009,-508.66,0.00012465,2]
[351282115,1738505539019,-500.0,0.00012465,2]
[351282116,1738505539029,-586.07,0.00012465,2]
[351282117,1738505539039,-800.25,0.00012465,2]
[351282118,1738505539049,-731.54,0.00012465,2]
[351282119,1738505539059,-1305.07,0.00012465,2]
[351282120,1738505539070,-1841.9,0.00012465,2]
[351282121,1738505539080,-734.22,0.00012465,2]
[351282122,1738505539090,-500.0,0.00012465,2]
[351282123,1738505539100,-1731.58,0.00012465,2]
[351282124,1738505539111,-573.1,0.00012465,2]
[351282125,1738505539121,-500.0,0.00012465,2]
[351282126,1738505539131,-500.0,0.00012465,2]
[351282127,1738505539141,-1366.78,0.00012465,2]
[351282128,1738505539151,-500.0,0.00012465,2]
[351282129,1738505539162,-1447.06,0.00012465,2]
[351282130,1738505539172,-500.0,0.00012465,2]
[351282131,1738505539182,-955.56,0.00012465,2]
[351282132,1738505539192,-521.42,0.00012465,2]
[351282133,1738505539202,-233.11114552,0.00012465,2]
[351282134,1738505539212,-854.39,0.00012465,2]
[351282135,1738505539225,-904.27,0.00012465,2]
[351282136,1738505539235,-2762.56,0.00012465,2]
[351282137,1738505539246,-500.0,0.00012465,2]
[351282138,1738505539256,-666.98,0.00012465,2]
[351282139,1738505539266,-500.0,0.00012465,2]
[351282140,1738505539276,-783.0,0.00012465,2]
[351282141,1738505539286,-500.0,0.00012465,2]
[351282142,1738505539296,-2104.01,0.00012465,2]
[351282143,1738505539306,-2287.85,0.00012465,2]
[351282144,1738505539316,-217.98353013,0.00012465,2]
[351282145,1738505539327,-944.74,0.00012465,2]
[351282146,1738505539337,-738.27,0.00012465,2]
[351282147,1738505539347,-505.82,0.00012465,2]
[351282148,1738505539358,-1519.92,0.00012465,2]
[351282149,1738505539368,-1297.85,0.00012465,2]
[351282150,1738505539378,-508.87949284,0.00012465,2]
[351282151,1738505539389,-500.0,0.00012465,2]
[351282152,1738505539400,-500.0,0.00012465,2]
[351282153,1738505539411,-500.0,0.00012465,2]
[351282154,1738505539422,-500.0,0.00012465,2]
[351282155,1738505539452,-643.77,0.00012465,2]
[351282156,1738505539463,-784.02,0.00012465,2]
[351282157,1738505539474,-503.62682563,0.00012465,2]
[351282158,1738505539484,-505.01159636,0.00012465,2]
[351282159,1738505539496,-581.91379659,0.00012465,2]
[351282160,1738505539506,-529.45,0.00012465,2]
[351282161,1738505539517,-500.0,0.00012465,2]
[351282162,1738505539528,-500.0,0.00012465,2]
[351282163,1738505539540,-1418.55,0.00012465,2]
[351282164,1738505539558,-517.07,0.00012465,2]
[351282165,1738505539571,-2783.69,0.00012465,2]
[351282166,1738505539584,-1420.23,0.00012465,2]
[351282167,1738505539594,-1225.35,0.00012465,2]
[351282168,1738505539605,-2181.51,0.00012465,2]
[351282169,1738505539615,-500.0,0.00012465,2]
[351282170,1738505539625,-500.0,0.00012465,2]
[351282171,1738505539636,-500.0,0.00012465,2]
[351282172,1738505539647,-942.19,0.00012465,2]
[351282173,1738505539657,-507.86,0.00012465,2]
[351282174,1738505539667,-844.52,0.00012465,2]
[351282175,1738505539677,-1267.86,0.00012465,2]
[351282176,1738505539687,-609.44502457,0.00012465,2]
[351282177,1738505539698,-1642.95,0.00012465,2]
[351282178,1738505539708,-632.5,0.00012465,2]
[351282179,1738505539718,-500.0,0.00012465,2]
[351282180,1738505539729,-717.96,0.00012465,2]
[351282181,1738505539741,-862.89,0.00012465,2]
[351282182,1738505539751,-500.0,0.00012465,2]
[351282183,1738505539762,-978.15,0.00012465,2]
[351282184,1738505539772,-1851.1,0.00012465,2]
[351282185,1738505539783,-591.76,0.00012465,2]
[351282186,1738505539794,-722.67,0.00012465,2]
[351282187,1738505539807,-500.0,0.00012465,2]
[351282188,1738505539818,-500.0,0.00012465,2]
[351282189,1738505539828,-520.38,0.00012465,2]
[351282190,1738505539838,-500.0,0.00012465,2]
[351282191,1738505539848,-500.0,0.00012465,2]
[351282192,1738505539858,-1708.12,0.00012465,2]
[351282193,1738505539868,-523.57,0.00012465,2]
[351282194,1738505539879,-500.0,0.00012465,2]
[351282195,1738505539889,-760.88,0.00012465,2]
[351282196,1738505539899,-500.0,0.00012465,2]
[351282197,1738505539909,-500.0,0.00012465,2]
[351282198,1738505539920,-500.0,0.00012465,2]
[351282199,1738505539929,-1175.0,0.00012465,2]
[351282200,1738505539939,-811.43,0.00012465,2]
[351282201,1738505539948,-1373.61,0.00012465,2]
[351282202,1738505539958,-1105.09,0.00012465,2]
[351282203,1738505539968,-747.24,0.00012465,2]
[351282204,1738505539977,-1419.66,0.00012465,2]
[351282205,1738505539988,-899.67,0.00012465,2]
[351282206,1738505539999,-500.0,0.00012465,2]
[351282207,1738505540009,-500.0,0.00012465,2]
[351282208,1738505540019,-500.0,0.00012465,2]
[351282209,1738505540029,-814.85,0.00012465,2]
[351282210,1738505540039,-967.34,0.00012465,2]
[351282211,1738505540048,-984.06,0.00012465,2]
[351282212,1738505540057,-709.72,0.00012465,2]
[351282213,1738505540067,-580.72,0.00012465,2]
[351282214,1738505540077,-500.0,0.00012465,2]
[351282215,1738505540087,-509.47,0.00012465,2]
[351282216,1738505540096,-1529.4,0.00012465,2]
[351282217,1738505540107,-1025.92,0.00012465,2]
[351282218,1738505540116,-500.0,0.00012465,2]
[351282219,1738505540126,-736.8,0.00012465,2]
[351282220,1738505540136,-500.0,0.00012465,2]
[351282221,1738505540146,-500.0,0.00012465,2]
[351282222,1738505540156,-500.0,0.00012465,2]
[351282223,1738505540166,-500.0,0.00012465,2]
[351282224,1738505540175,-500.0,0.00012465,2]
[351282225,1738505540185,-500.0,0.00012465,2]
[351282226,1738505540195,-500.0,0.00012465,2]
[351282227,1738505540204,-794.58,0.00012465,2]
[351282228,1738505540214,-500.0,0.00012465,2]
[351282229,1738505540223,-515.19,0.00012465,2]
[351282230,1738505540233,-500.0,0.00012465,2]
[351282231,1738505540243,-551.09,0.00012465,2]
[351282232,1738505540253,-500.0,0.00012465,2]
[351282233,1738505540263,-1457.11,0.00012465,2]
[351282234,1738505540272,-500.0,0.00012465,2]
[351282235,1738505540283,-848.94,0.00012465,2]
[351282236,1738505540292,-1457.16,0.00012465,2]
[351282237,1738505540302,-512.04,0.00012465,2]
[351282238,1738505540311,-562.76,0.00012465,2]
[351282239,1738505540321,-1032.24,0.00012465,2]
[351282240,1738505540333,-1061.96,0.00012465,2]
[351282241,1738505540343,-500.0,0.00012465,2]
[351282242,1738505540353,-1015.65,0.00012465,2]
[351282243,1738505540362,-679.22,0.00012465,2]
[351282244,1738505540372,-1177.9,0.00012465,2]
[351282245,1738505540381,-510.71,0.00012465,2]
[351282246,1738505540391,-500.0,0.00012465,2]
[351282247,1738505540401,-500.0,0.00012465,2]
[351282248,1738505540410,-584.42,0.00012465,2]
[351282249,1738505540419,-1657.79,0.00012465,2]
[351282250,1738505540430,-1057.32,0.00012465,2]
[351282251,1738505540440,-500.0,0.00012465,2]
[351282252,1738505540450,-500.0,0.00012465,2]
[351282253,1738505540460,-500.0,0.00012465,2]
[351282254,1738505540470,-737.32,0.00012465,2]
[351282255,1738505540481,-865.79,0.00012465,2]
[351282256,1738505540491,-1316.4,0.00012465,2]
[351282257,1738505540501,-645.53595124,0.00012465,2]
[351282258,1738505540511,-671.26,0.00012465,2]
[351282259,1738505540520,-751.62,0.00012465,2]
[351282260,1738505540530,-1011.53,0.00012465,2]
[351282261,1738505540541,-750.62,0.00012465,2]
[351282262,1738505540553,-500.0,0.00012465,2]
[351282263,1738505540563,-1248.28,0.00012465,2]
[351282264,1738505540573,-519.27,0.00012465,2]
[351282265,1738505540585,-500.0,0.00012465,2]
[351282266,1738505540595,-500.0,0.00012465,2]
[351282267,1738505540605,-775.41,0.00012465,2]
[351282268,1738505540615,-650.78,0.00012465,2]
[351282269,1738505540626,-500.0,0.00012465,2]
[351282270,1738505540635,-787.2,0.00012465,2]
[351282271,1738505540646,-500.0,0.00012465,2]
[351282272,1738505540655,-1398.59,0.00012465,2]
[351282273,1738505540665,-2098.34,0.00012465,2]
[351282274,1738505540675,-1717.3,0.00012465,2]
[351282275,1738505540685,-535.92,0.00012465,2]
[351282276,1738505540694,-500.0,0.00012465,2]
[351282277,1738505540704,-500.0,0.00012465,2]
[351282278,1738505540713,-520.83,0.00012465,2]
[351282279,1738505540724,-500.0,0.00012465,2]
[351282280,1738505540733,-500.0,0.00012465,2]
[351282281,1738505540744,-1388.03,0.00012465,2]
[351282282,1738505540754,-696.21,0.00012465,2]
[351282283,1738505540763,-1438.93,0.00012465,2]
[351282284,1738505540773,-638.42,0.00012465,2]
[351282285,1738505540782,-1523.64,0.00012465,2]
[351282286,1738505540792,-500.0,0.00012465,2]
[351282287,1738505540801,-500.0,0.00012465,2]
[351282288,1738505540811,-1164.79,0.00012465,2]
[351282289,1738505540820,-500.0,0.00012465,2]
[351282290,1738505540830,-2008.34,0.00012465,2]
[351282291,1738505540840,-867.5,0.00012465,2]
[351282292,1738505540850,-500.0,0.00012465,2]
[351282293,1738505540860,-930.83,0.00012465,2]
[351282294,1738505540870,-1142.86,0.00012465,2]
[351282295,1738505540880,-1063.97,0.00012465,2]
[351282296,1738505540891,-5963.38,0.00012465,2]
[351282297,1738505540901,-632.65,0.00012465,2]
[351282298,1738505540911,-528.98,0.00012465,2]
[351282299,1738505540921,-939.46,0.00012465,2]
[351282300,1738505540930,-500.0,0.00012465,2]
[351282301,1738505540940,-1411.82,0.00012465,2]
[351282302,1738505540950,-2575.73,0.00012465,2]
[351282303,1738505540960,-500.0,0.00012465,2]
[351282304,1738505540970,-500.0,0.00012465,2]
[351282305,1738505540980,-4332.07,0.00012465,2]
[351282306,1738505540991,-500.0,0.00012465,2]
[351282307,1738505541001,-623.14,0.00012465,2]
[351282308,1738505541011,-808.47,0.00012465,2]
[351282309,1738505541021,-514.21673815,0.00012465,2]
[351282310,1738505541031,-500.0,0.00012465,2]
[351282311,1738505541041,-500.0,0.00012465,2]
[351282312,1738505541052,-500.0,0.00012465,2]
[351282313,1738505541062,-1167.23,0.00012465,2]
[351282314,1738505541072,-1073.14,0.00012465,2]
[351282315,1738505541082,-1266.06,0.00012465,2]
[351282316,1738505541092,-1098.43,0.00012465,2]
[351282317,1738505541102,-1643.83,0.00012465,2]
[351282318,1738505541112,-2134.84,0.00012465,2]
[351282319,1738505541122,-7531.63,0.00012465,2]
[351282320,1738505541132,-636.47,0.00012465,2]
[351282321,1738505541142,-2806.74,0.00012465,2]
[351282322,1738505541227,-500.0,0.00012465,2]
[351282323,1738505541244,-4457.82,0.00012465,2]
[351282324,1738505541254,-500.0,0.00012465,2]
[351282325,1738505541265,-500.0,0.00012465,2]
[351282326,1738505541276,-1431.15,0.00012465,2]
[351282327,1738505541286,-500.0,0.00012465,2]
[351282328,1738505541297,-1068.36,0.00012465,2]
[351282329,1738505541307,-3317.75,0.00012465,2]
[351282330,1738505541317,-500.0,0.00012465,2]
[351282331,1738505541327,-500.0,0.00012465,2]
[351282332,1738505541337,-3236.23,0.00012465,2]
[351282333,1738505541347,-500.0,0.00012465,2]
[351282334,1738505541357,-500.0,0.00012465,2]
[351282335,1738505541367,-998.58,0.00012465,2]
[351282336,1738505541378,-649.19,0.00012465,2]
[351282337,1738505541387,-3603.07,0.00012465,2]
[351282338,1738505541397,-647.76,0.00012465,2]
[351282339,1738505541408,-518.71,0.00012465,2]
[351282340,1738505541419,-2773.67,0.00012465,2]
[351282341,1738505541429,-604.06372231,0.00012465,2]
[351282342,1738505541439,-3478.77,0.00012465,2]
[351282343,1738505541463,-1377.07,0.00012465,2]
[351282344,1738505541474,-500.0,0.00012465,2]
[351282345,1738505541485,-1559.79,0.00012465,2]
[351282346,1738505541499,-993.51,0.00012465,2]
[351282347,1738505541509,-1353.14,0.00012465,2]
[351282348,1738505541521,-532.1,0.00012465,2]
[351282349,1738505541531,-1889.01,0.00012465,2]
[351282350,1738505541545,-5584.57,0.00012465,2]
[351282351,1738505541556,-628.58,0.00012465,2]
[351282352,1738505541566,-500.0,0.00012465,2]
[351282353,1738505541577,-500.0,0.00012465,2]
[351282354,1738505541587,-1416.56,0.00012465,2]
[351282355,1738505541598,-966.92,0.00012465,2]
[351282356,1738505541609,-1706.09,0.00012465,2]
[351282357,1738505541621,-820.07,0.00012465,2]
[351282358,1738505541632,-865.01,0.00012465,2]
[351282359,1738505541642,-555.56,0.00012465,2]
[351282360,1738505541652,-500.0,0.00012465,2]
[351282361,1738505541663,-6599.2,0.00012465,2]
[351282362,1738505541674,-524.5979489,0.00012465,2]
[351282363,1738505541684,-590.40761639,0.00012465,2]
[351282364,1738505541694,-4362.97,0.00012465,2]
[351282365,1738505541704,-3023.49,0.00012465,2]
[351282366,1738505541715,-1475.65,0.00012465,2]
[351282367,1738505541725,-786.41,0.00012465,2]
[351282368,1738505541735,-1337.09,0.00012465,2]
[351282369,1738505541746,-1205.96,0.00012465,2]
[351282370,1738505541756,-1903.11,0.00012465,2]
[351282371,1738505541767,-2817.82,0.00012465,2]
[351282372,1738505541777,-2360.45,0.00012465,2]
[351282373,1738505541788,-500.0,0.00012465,2]
[351282374,1738505541799,-583.26,0.00012465,2]
[351282375,1738505541808,-934.52,0.00012465,2]
[351282376,1738505541819,-1388.22,0.00012465,2]
[351282377,1738505541829,-2432.51,0.00012465,2]
[351282378,1738505541839,-2243.95,0.00012465,2]
[351282379,1738505541849,-609.67,0.00012465,2]
[351282380,1738505541859,-1262.46,0.00012465,2]
[351282381,1738505541869,-2572.68,0.00012465,2]
[351282382,1738505541879,-1950.74,0.00012465,2]
[351282383,1738505541889,-500.0,0.00012465,2]
[351282384,1738505541899,-1181.19,0.00012465,2]
[351282385,1738505541909,-871.86,0.00012465,2]
[351282386,1738505541919,-1126.88,0.00012465,2]
[351282387,1738505541929,-541.6,0.00012465,2]
[351282388,1738505541939,-2805.0,0.00012465,2]
[351282389,1738505541949,-2478.61,0.00012465,2]
[351282390,1738505541958,-3490.69,0.00012465,2]
[351282391,1738505541968,-1886.99,0.00012465,2]
[351282392,1738505541978,-693.62,0.00012465,2]
[351282393,1738505541988,-1166.42,0.00012465,2]
[351282394,1738505541998,-4718.72,0.00012465,2]
[351282395,1738505542008,-646.83,0.00012465,2]
[351282396,1738505542018,-500.0,0.00012465,2]
[351282397,1738505542028,-1219.56,0.00012465,2]
[351282398,1738505542038,-1713.43,0.00012465,2]
[351282399,1738505542048,-500.0,0.00012465,2]
[351282400,1738505542058,-764.96,0.00012465,2]
[351282401,1738505542068,-742.31,0.00012465,2]
[351282402,1738505542078,-585.08,0.00012465,2]
[351282403,1738505542088,-5247.94,0.00012465,2]
[351282404,1738505542098,-1545.21,0.00012465,2]
[351282405,1738505542108,-5157.65,0.00012465,2]
[351282406,1738505542117,-2240.61,0.00012465,2]
[351282407,1738505542127,-1481.58,0.00012465,2]
[351282408,1738505542136,-535.67,0.00012465,2]
[351282409,1738505542146,-1485.26,0.00012465,2]
[351282410,1738505542155,-1399.19,0.00012465,2]
[351282411,1738505542165,-3226.98,0.00012465,2]
[351282412,1738505542175,-1311.36,0.00012465,2]
[351282413,1738505542184,-500.0,0.00012465,2]
[351282414,1738505542194,-5680.36,0.00012465,2]
[351282415,1738505542204,-2300.21,0.00012465,2]
[351282416,1738505542213,-500.0,0.00012465,2]
[351282417,1738505542223,-2521.42,0.00012465,2]
[351282418,1738505542233,-2782.57,0.00012465,2]
[351282419,1738505542244,-600.42,0.00012465,2]
[351282420,1738505542254,-500.0,0.00012465,2]
[351282421,1738505542264,-1766.1,0.00012465,2]
[351282422,1738505542274,-1697.0,0.00012465,2]
[351282423,1738505542284,-1939.71,0.00012465,2]
[351282424,1738505542293,-787.48,0.00012465,2]
[351282425,1738505542304,-1300.79,0.00012465,2]
[351282426,1738505542314,-3484.78,0.00012465,2]
[351282427,1738505542324,-506.69188877,0.00012465,2]
[351282428,1738505542333,-512.49,0.00012465,2]
[351282429,1738505542343,-500.0,0.00012465,2]
[351282430,1738505542354,-1213.23,0.00012465,2]
[351282431,1738505542364,-5629.82,0.00012465,2]
[351282432,1738505542374,-2449.26,0.00012465,2]
[351282433,1738505542383,-758.01,0.00012465,2]
[351282434,1738505542393,-848.99,0.00012465,2]
[351282435,1738505542403,-888.7,0.00012465,2]
[351282436,1738505542413,-4605.95,0.00012465,2]
[351282437,1738505542423,-2359.63,0.00012465,2]
[351282438,1738505542432,-892.49,0.00012465,2]
[351282439,1738505542442,-871.23,0.00012465,2]
[351282440,1738505542452,-1094.04,0.00012465,2]
[351282441,1738505542462,-6442.67,0.00012465,2]
[351282442,1738505542471,-1297.27,0.00012465,2]
[351282443,1738505542481,-2052.81,0.00012465,2]
[351282444,1738505542491,-2655.71,0.00012465,2]
[351282445,1738505542501,-1885.94,0.00012465,2]
[351282446,1738505542510,-619.20292194,0.00012465,2]
[351282447,1738505542520,-10441.41,0.00012465,2]
[351282448,1738505542530,-1553.08,0.00012465,2]
[351282449,1738505542541,-500.0,0.00012465,2]
[351282450,1738505542553,-1012.3,0.00012465,2]
[351282451,1738505542563,-500.0,0.00012465,2]
[351282452,1738505542574,-4514.04,0.00012465,2]
[351282453,1738505542585,-3003.61,0.00012465,2]
[351282454,1738505542595,-2902.94,0.00012465,2]
[351282455,1738505542604,-4716.6,0.00012465,2]
[351282456,1738505542615,-1964.45,0.00012465,2]
[351282457,1738505542625,-1593.35,0.00012465,2]
[351282458,1738505542634,-492.79127496,0.00012465,2]
[351282459,1738505542911,-1637.22,0.00012465,2]
[351282460,1738505542928,-3416.51,0.00012465,2]
[351282461,1738505542939,-882.55,0.00012465,2]
[351282462,1738505542948,-500.0,0.00012465,2]
[351282463,1738505542958,-4127.67,0.00012465,2]
[351282464,1738505542967,-9172.95,0.00012465,2]
[351282465,1738505542977,-716.69,0.00012465,2]
[351282466,1738505542986,-3935.05,0.00012465,2]
[351282467,1738505542996,-994.51,0.00012465,2]
[351282468,1738505543006,-500.0,0.00012465,2]
[351282469,1738505543016,-500.0,0.00012465,2]
[351282470,1738505543026,-2231.33,0.00012465,2]
[351282471,1738505543035,-646.36,0.00012465,2]
[351282472,1738505543045,-7703.46,0.00012465,2]